bitfinex-derivatives/quotes_ETHF0:USTF0_20210107
["timestamp","ask_amount","ask_price","bid_price","bid_amount"]
[1610034816947,4.00959,1237.2,1236.8,1.9753]
[1610034817348,2.5744,1237.8,1236.9,4.00959]
[1610034818346,2.5744,1237.8,1236.9,6.60199]
[1610034819148,4.00959,1237.6,1237.3,4.00959]
[1610034819950,4.00959,1237.6,1236.9,2.5924]
[1610034821250,2.4631,1237.9,1236.9,2.5924]
[1610034821251,4.00959,1237.1,1236.9,6.60199]
[1610034823751,2.725,1237.6,1236.9,15.07969]
[1610034824351,2.4631,1237.9,1236.9,15.07969]
[1610034825257,2.4631,1237.9,1237.8,4.00959]
[1610034825454,4.00959,1238.0,1237.8,4.00959]
[1610034825656,3.1451,1238.2,1237.4,2.7177]
[1610034825857,6.912,1239.9,1237.5,49.4603]
[1610034826857,5.6487,1239.4,1237.5,49.4603]
[1610034827258,4.00959,1238.0,1237.7,4.00959]
[1610034827857,2.4846,1238.3,1237.7,4.00959]
[1610034829258,6.49419,1238.3,1238.1,4.00959]
[1610034829858,2.4846,1238.3,1238.1,4.00959]
[1610034830259,5.6487,1239.4,1238.1,4.00959]
[1610034830659,5.6487,1239.4,1238.1,67.53179]
[1610034830859,5.7271,1240.1,1238.1,4.00959]
[1610034831060,5.7271,1240.1,1238.2,57.2973]
[1610034831259,4.00959,1239.2,1239.0,4.00959]
[1610034831658,7.21109,1239.2,1239.0,4.00959]
[1610034832760,3.2015,1239.2,1239.0,4.00959]
[1610034833962,2.5769,1239.5,1239.0,4.00959]
[1610034835363,6.1694,1241.0,1239.0,4.00959]
[1610034835364,4.00959,1240.1,1239.4,4.00959]
[1610034835564,4.00959,1240.1,1239.6,6.7499]
[1610034835865,6.2284,1241.5,1239.4,4.00959]
[1610034835866,4.90739,1241.5,1239.4,4.00959]
[1610034836077,4.90739,1241.5,1239.8,65.4523]
[1610034836264,7.26469,1241.5,1239.8,65.4523]
[1610034837366,7.26469,1241.5,1240.3,4.00959]
[1610034839270,7.26469,1241.5,1239.8,65.4523]
[1610034839470,6.03809,1240.5,1239.9,4.00959]
[1610034841374,6.03809,1240.5,1240.2,4.00959]
[1610034841773,6.03809,1240.5,1239.6,46.0418]
[1610034842973,2.0285,1240.5,1239.6,46.0418]
[1610034843572,2.0285,1240.5,1239.6,48.6808]
[1610034843774,2.0285,1240.5,1239.9,62.7818]
[1610034844573,4.00959,1240.9,1239.9,62.7818]
[1610034845374,4.00959,1240.9,1240.6,4.00959]
[1610034846174,2.3573,1241.5,1240.6,4.00959]
[1610034846374,3.475,1242.6,1240.6,4.00959]
[1610034847375,4.00959,1241.1,1240.4,65.5629]
[1610034847574,6.54249,1241.1,1240.4,65.5629]
[1610034849379,4.00959,1240.8,1240.5,4.00959]
[1610034849577,2.5329,1241.1,1240.5,4.00959]
[1610034849778,1.9996,1240.8,1240.5,4.00959]
[1610034851380,1.9996,1240.8,1240.7,4.00959]
[1610034854683,4.00959,1241.0,1240.7,4.00959]
[1610034856191,4.00959,1241.0,1239.9,69.2536]
[1610034857390,4.00959,1240.6,1240.4,4.00959]
[1610034858391,2.9015,1240.7,1240.4,4.00959]
[1610034859392,4.00959,1240.6,1240.4,4.00959]
[1610034859597,2.9015,1240.7,1240.4,4.00959]
[1610034861392,2.9015,1240.7,1240.6,4.00959]
[1610034862594,4.00959,1240.9,1240.6,4.00959]
[1610034863394,4.00959,1240.7,1240.6,4.00959]
[1610034863597,6.74389,1240.7,1240.6,4.00959]
[1610034864096,6.74389,1240.7,1239.0,2.8363]
[1610034864295,6.74389,1240.7,1239.0,54.5951]
[1610034865399,2.7343,1240.7,1240.0,4.00959]
[1610034867100,2.7343,1240.7,1239.6,56.5684]
[1610034867500,4.00959,1240.0,1239.0,2.8363]
[1610034867702,6.57599,1240.0,1238.7,2.8001]
[1610034869003,6.57599,1240.0,1239.0,65.4367]
[1610034869404,6.57599,1240.0,1239.9,4.00959]
[1610034869604,2.5664,1240.0,1239.9,4.00959]
[1610034872307,4.00959,1240.4,1239.9,4.00959]
[1610034872509,2.7343,1240.7,1239.9,4.00959]
[1610034872707,2.5329,1241.1,1239.9,4.00959]
[1610034873108,5.8932,1241.2,1239.9,4.00959]
[1610034873307,30.0,1243.4,1239.9,4.00959]
[1610034873509,30.0,1243.4,1239.3,2.6611]
[1610034873711,8.2961,1242.1,1239.3,2.6611]
[1610034874012,8.2961,1242.1,1239.6,45.7315]
[1610034875112,8.2961,1242.1,1239.3,2.6611]
[1610034875513,8.2961,1242.1,1240.6,4.00959]
[1610034875713,2.4645,1242.1,1240.7,7.5179]
[1610034877416,2.4645,1242.1,1241.2,4.00959]
[1610034878714,6.1098,1243.3,1241.2,4.00959]
[1610034878916,6.1098,1243.3,1240.7,7.5179]
[1610034879216,6.6168,1242.6,1240.7,7.5179]
[1610034879514,4.00959,1241.1,1240.9,4.00959]
[1610034879714,5.23619,1243.3,1240.9,4.00959]
[1610034879914,8.71119,1243.3,1240.9,4.00959]
[1610034881615,4.00959,1241.3,1240.7,7.5179]
[1610034881815,7.06239,1241.3,1240.7,7.5179]
[1610034883516,7.06239,1241.3,1241.0,4.00959]
[1610034884417,7.06239,1241.3,1240.7,7.5179]
[1610034885617,7.06239,1241.3,1241.2,4.00959]
[1610034887621,3.0528,1241.3,1241.2,4.00959]
[1610034887820,4.00959,1241.5,1241.2,4.00959]
[1610034888220,4.00959,1241.5,1241.1,51.3797]
[1610034888420,6.12179,1241.5,1241.1,51.3797]
[1610034889523,6.12179,1241.5,1241.2,4.00959]
[1610034890120,6.12179,1241.5,1241.1,51.3797]
[1610034891522,4.00959,1241.2,1241.1,51.3797]
[1610034893522,7.06349,1241.2,1241.1,51.3797]
[1610034903631,7.06349,1241.2,1241.1,55.38929]
[1610034904232,3.0539,1241.2,1241.1,55.38929]
[1610034904433,2.4495,1241.2,1241.1,55.38929]
[1610034905334,2.4495,1241.2,1241.1,4.00959]
[1610034905733,6.12179,1241.5,1241.1,4.00959]
[1610034905932,2.1122,1241.5,1241.1,61.17969]
[1610034906132,5.23619,1243.3,1241.1,61.17969]
[1610034906333,10.387,1243.4,1241.1,61.17969]
[1610034906533,10.23,1244.3,1241.1,4.00959]
[1610034906733,10.23,1244.3,1241.7,51.4005]
[1610034907333,9.6073,1244.9,1241.7,51.4005]
[1610034907733,4.00959,1242.5,1242.4,4.00959]
[1610034907935,6.04789,1242.5,1242.4,4.00959]
[1610034908535,6.04789,1242.5,1241.6,58.5951]
[1610034909635,4.00959,1242.3,1242.1,4.00959]
[1610034910037,2.0383,1242.5,1242.1,4.00959]
[1610034911739,2.0383,1242.5,1241.6,61.332]
[1610034911740,6.04789,1242.5,1242.4,4.00959]
[1610034911940,6.04789,1242.5,1241.6,61.332]
[1610034913742,4.00959,1241.9,1241.6,61.332]
[1610034913941,4.00959,1241.9,1241.6,2.7369]
[1610034914541,4.00959,1241.9,1241.3,2.5183]
[1610034914742,7.20889,1241.9,1240.8,62.3265]
[1610034914945,7.20889,1241.9,1240.0,62.7789]
[1610034915142,7.20889,1241.9,1239.7,7.98608208]
[1610034915341,7.20889,1241.9,1240.2,66.7843]
[1610034915742,3.1993,1241.9,1240.2,69.1239]
[1610034915946,2.5355,1241.3,1240.2,69.1239]
[1610034916842,2.267,1241.6,1240.2,69.1239]
[1610034917443,3.1993,1241.9,1240.2,69.1239]
[1610034917643,3.1993,1241.9,1241.8,4.00959]
[1610034919744,2.3771,1242.2,1241.8,4.00959]
[1610034919944,4.00959,1242.4,1241.8,4.00959]
[1610034920343,4.00959,1242.4,1241.1,2.5228]
[1610034920544,7.16579,1242.4,1241.1,2.5228]
[1610034921653,3.1562,1242.4,1241.8,4.00959]
[1610034922347,3.1562,1242.4,1241.1,2.5228]
[1610034923049,3.1562,1242.4,1240.2,2.3396]
[1610034923248,3.1562,1242.4,1240.1,52.9123]
[1610034923655,4.00959,1241.4,1241.1,4.00959]
[1610034924048,6.91219,1241.4,1240.1,52.9123]
[1610034925650,4.00959,1241.2,1241.1,4.00959]
[1610034925849,2.9026,1241.4,1241.1,4.00959]
[1610034927651,4.00959,1241.2,1241.1,4.00959]
[1610034928052,4.00959,1241.2,1240.1,52.9123]
[1610034928352,4.00959,1241.2,1239.9,2.0023]
[1610034929252,4.00959,1241.2,1239.3,54.5887]
[1610034929654,4.00959,1240.1,1239.9,4.00959]
[1610034931157,2.7885,1240.2,1239.9,4.00959]
[1610034931658,2.7885,1240.2,1240.1,4.00959]
[1610034934663,2.7885,1240.2,1239.2,2.5658]
[1610034935064,4.00959,1240.5,1239.2,2.5658]
[1610034935263,2.0187,1240.2,1239.2,2.5658]
[1610034935666,2.0187,1240.2,1240.1,4.00959]
[1610034938868,2.0187,1240.2,1239.2,2.5658]
[1610034939068,2.0187,1240.2,1238.2,64.6648]
[1610034939670,4.00959,1239.2,1238.9,4.00959]
[1610034939869,7.15169,1239.2,1238.9,4.00959]
[1610034941774,4.00959,1239.0,1238.9,4.00959]
[1610034941973,3.1421,1239.2,1238.9,4.00959]
[1610034943874,3.1421,1239.2,1239.1,4.00959]
[1610034944677,2.0187,1240.2,1239.1,4.00959]
[1610034944877,6.1157,1241.3,1239.1,4.00959]
[1610034945679,4.00959,1239.8,1239.6,4.00959]
[1610034946280,7.07519,1239.8,1239.6,4.00959]
[1610034949482,7.07519,1239.8,1238.9,61.4418]
[1610034949684,7.07519,1239.8,1238.7,2.3448]
[1610034949882,3.0656,1239.8,1239.2,4.00959]
[1610034951289,46.6509,1240.9,1238.4,48.2517]
[1610034951786,4.00959,1239.4,1239.0,4.00959]
[1610034951989,6.86239,1239.4,1239.0,4.00959]
[1610034952389,6.86239,1239.4,1236.3,5.9632]
[1610034952589,6.86239,1239.4,1237.1,66.9667]
[1610034953388,6.86239,1239.4,1236.3,5.9632]
[1610034953589,6.86239,1239.4,1237.1,47.2764]
[1610034953789,2.8528,1239.4,1239.2,4.00959]
[1610034954391,2.8528,1239.4,1238.4,47.939]
[1610034954593,2.8528,1239.4,1238.0,3.092]
[1610034955791,4.00959,1239.2,1239.0,4.00959]
[1610034956691,4.00959,1239.2,1238.0,3.092]
[1610034957793,2.8528,1239.4,1238.8,4.00959]
[1610034957993,67.6206,1240.6,1238.8,4.00959]
[1610034958193,6.0526,1240.6,1238.8,4.00959]
[1610034958593,6.0526,1240.6,1238.0,65.2411]
[1610034958795,8.5386,1240.6,1238.0,65.2411]
[1610034959898,8.5386,1240.6,1238.6,4.00959]
[1610034961901,4.00959,1239.5,1239.0,4.00959]
[1610034962102,6.72729,1239.5,1239.0,4.00959]
[1610034963802,6.72729,1239.5,1239.4,4.00959]
[1610034965003,6.72729,1239.5,1238.7,62.4226]
[1610034965903,2.7177,1239.5,1238.7,62.4226]
[1610034967306,8.5386,1240.6,1238.7,62.4226]
[1610034967908,8.5386,1240.6,1239.0,4.00959]
[1610034969410,16.7292,1240.6,1238.7,62.4226]
[1610034969815,4.00959,1238.8,1238.3,4.00959]
[1610034970012,7.20879,1238.8,1238.3,4.00959]
[1610034971913,7.20879,1238.8,1236.8,60.2269]
[1610034972115,7.20879,1238.8,1237.4,3.1283]
[1610034973919,3.1992,1238.8,1238.1,4.00959]
[1610034975121,65.5394,1240.4,1238.1,4.00959]
[1610034975721,65.5394,1240.4,1236.8,60.2269]
[1610034975923,4.00959,1238.0,1237.8,4.00959]
[1610034976321,6.07519,1238.0,1236.5,46.5687]
[1610034976721,6.07519,1238.0,1236.5,49.5047]
[1610034977824,2.0656,1238.0,1237.3,4.00959]
[1610034978025,2.0656,1238.0,1236.5,49.5047]
[1610034978222,2.0656,1238.0,1236.5,2.936]
[1610034979426,2.0656,1238.0,1236.2,54.6459]
[1610034979925,4.00959,1237.3,1237.0,4.00959]
[1610034980224,6.67899,1237.3,1237.0,4.00959]
[1610034981024,2.6694,1237.3,1237.0,4.00959]
[1610034981825,2.6694,1237.3,1237.2,4.00959]
[1610034983228,2.0656,1238.0,1237.2,4.00959]
[1610034983627,11.9015,1239.6,1237.2,4.00959]
[1610034983828,11.9015,1239.6,1238.0,4.00959]
[1610034984030,6.0405,1239.6,1238.0,4.00959]
[1610034985833,4.00959,1238.1,1238.0,4.00959]
[1610034986034,6.04809,1238.1,1238.0,4.00959]
[1610034986231,2.0385,1238.1,1238.0,4.00959]
[1610034988234,2.0385,1238.1,1236.7,3.1876]
[1610034988536,2.0385,1238.1,1236.5,64.5819]
[1610034988734,2.0385,1238.1,1236.2,6.0147]
[1610034989935,2.0385,1238.1,1237.8,4.00959]
[1610034991139,11.9082,1239.6,1237.8,4.00959]
[1610034991339,6.0405,1239.6,1237.8,4.00959]
[1610034992040,6.0405,1239.6,1238.0,4.00959]
[1610034993944,7.19699,1238.4,1238.0,4.00959]
[1610034995247,3.1874,1238.4,1238.0,4.00959]
[1610034995949,3.1874,1238.4,1238.3,4.00959]
[1610034998150,4.00959,1239.3,1238.3,4.00959]
[1610035000149,4.00959,1239.3,1238.0,60.1083]
[1610035000150,4.00959,1238.9,1238.8,4.00959]
[1610035000350,2.0396,1238.9,1238.8,4.00959]
[1610035002152,6.04919,1238.9,1238.8,4.00959]
[1610035002352,2.0396,1238.9,1238.8,4.00959]
[1610035005653,5.9375,1240.4,1238.8,4.00959]
[1610035006053,5.9375,1240.4,1239.3,4.00959]
[1610035008055,5.9375,1240.4,1239.5,4.00959]
[1610035008456,35.6688,1241.3,1239.5,4.00959]
[1610035008856,30.0,1241.3,1239.0,47.0299]
[1610035010157,4.00959,1239.5,1239.3,4.00959]
[1610035010358,6.94719,1239.5,1239.3,4.00959]
[1610035010558,6.94719,1239.5,1238.4,49.5516]
[1610035012161,2.9376,1239.5,1238.8,4.00959]
[1610035014264,4.00959,1238.9,1238.8,4.00959]
[1610035015965,2.1918,1239.1,1238.8,4.00959]
[1610035016165,6.20139,1239.1,1238.8,4.00959]
[1610035016868,2.1918,1239.1,1238.8,4.00959]
[1610035018167,2.1918,1239.1,1239.0,4.00959]
[1610035018871,2.9376,1239.5,1239.0,4.00959]
[1610035019075,2.9376,1239.5,1239.0,53.73589]
[1610035019275,6.1737,1241.3,1239.0,53.73589]
[1610035019670,5.8473,1241.8,1239.0,53.73589]
[1610035020270,5.8473,1241.8,1240.7,4.00959]
[1610035020485,30.0,1242.2,1240.7,4.00959]
[1610035020877,30.0,1243.0,1240.7,4.00959]
[1610035022178,30.0,1243.0,1241.3,4.00959]
[1610035022378,3.475,1243.1,1241.3,4.00959]
[1610035022779,30.0,1243.4,1241.3,4.00959]
[1610035023180,30.0,1243.9,1241.3,4.00959]
[1610035024180,30.0,1243.9,1241.6,4.00959]
[1610035024380,30.0,1243.9,1240.6,2.1252]
[1610035024381,65.4093,1243.6,1240.7,52.6084]
[1610035024581,33.0921,1243.5,1240.7,52.6084]
[1610035026280,4.00959,1241.1,1241.0,4.00959]
[1610035026480,1.9995,1241.1,1241.0,4.00959]
[1610035027581,1.9828,1241.4,1241.0,4.00959]
[1610035028183,1.9828,1241.4,1241.3,4.00959]
[1610035029485,1.9828,1241.4,1240.7,52.6084]
[1610035030286,5.99239,1241.4,1241.1,4.00959]
[1610035031286,5.99239,1241.4,1240.7,52.6084]
[1610035031489,5.99239,1241.4,1240.6,2.717]
[1610035031694,5.99239,1241.4,1240.3,3.1283]
[1610035031889,5.99239,1241.4,1239.8,56.3687]
[1610035032288,1.9828,1241.4,1240.7,4.00959]
[1610035032690,91.4037,1242.4,1240.7,4.00959]
[1610035032889,61.4037,1242.4,1240.7,4.00959]
[1610035033089,30.0,1243.4,1240.7,4.00959]
[1610035036194,4.00959,1240.8,1240.7,4.00959]
[1610035036494,7.10939,1240.8,1240.7,4.00959]
[1610035037493,3.0998,1240.8,1240.7,4.00959]
[1610035038198,7.10939,1240.8,1240.7,4.00959]
[1610035038597,7.10939,1240.8,1240.1,62.5907]
[1610035039498,7.10939,1240.8,1237.1,3.475]
[1610035039697,7.10939,1240.8,1239.2,54.1831]
[1610035040098,7.10939,1240.8,1239.2,56.4205]
[1610035040300,3.0998,1240.8,1240.6,4.00959]
[1610035041401,53.7853,1242.1,1240.6,4.00959]
[1610035041602,30.0,1243.4,1240.6,4.00959]
[1610035041802,56.9957,1243.3,1240.6,4.00959]
[1610035042003,32.6029,1243.2,1240.6,4.00959]
[1610035042202,4.00959,1240.7,1240.6,4.00959]
[1610035042904,6.06709,1240.7,1240.6,4.00959]
[1610035045707,2.0575,1240.7,1240.6,4.00959]
[1610035047011,2.7749,1241.0,1240.6,4.00959]
[1610035048311,2.7749,1241.0,1240.9,4.00959]
[1610035050209,55.6675,1242.5,1240.9,4.00959]
[1610035050410,4.00959,1241.7,1240.9,10.71599]
[1610035051514,55.6675,1242.5,1240.9,10.71599]
[1610035052412,55.6675,1242.5,1241.9,4.00959]
[1610035052613,5.7601,1243.1,1241.9,4.00959]
[1610035054014,5.7601,1243.1,1241.3,60.7163]
[1610035054313,4.00959,1242.0,1241.7,4.00959]
[1610035054515,6.54839,1242.0,1241.7,4.00959]
[1610035054917,6.54839,1242.0,1241.3,60.7163]
[1610035055915,2.5388,1242.0,1241.3,60.7163]
[1610035056318,2.5388,1242.0,1241.9,4.00959]
[1610035057316,2.6029,1243.2,1241.9,4.00959]
[1610035057516,6.0423,1243.4,1241.9,4.00959]
[1610035057718,3.0921,1243.5,1241.9,61.64549]
[1610035057916,68.969,1245.0,1241.9,61.64549]
[1610035058318,4.00959,1242.9,1242.7,4.00959]
[1610035058521,6.76139,1242.9,1242.7,4.00959]
[1610035059618,6.76139,1242.9,1241.9,62.6359]
[1610035060319,6.76139,1242.9,1242.6,4.00959]
[1610035062322,6.76139,1242.9,1242.8,4.00959]
[1610035062923,2.7518,1242.9,1242.8,4.00959]
[1610035063625,68.969,1245.0,1242.8,4.00959]
[1610035063824,6.1287,1245.0,1242.8,4.00959]
[1610035064424,4.00959,1243.2,1243.0,4.00959]
[1610035064824,6.30079,1243.2,1243.0,4.00959]
[1610035065726,6.30079,1243.2,1242.3,66.1109]
[1610035066127,6.30079,1243.2,1242.4,5.0]
[1610035066326,6.30079,1243.2,1242.9,4.00959]
[1610035068128,2.2912,1243.2,1242.9,4.00959]
[1610035068528,2.2912,1243.2,1243.1,4.00959]
[1610035070132,61.6929,1244.7,1243.1,4.00959]
[1610035070533,61.6929,1244.7,1242.4,5.0]
[1610035070534,4.00959,1243.7,1243.5,4.00959]
[1610035070734,6.60959,1243.7,1243.5,4.00959]
[1610035074835,6.60959,1243.7,1242.4,56.6521]
[1610035075235,6.60959,1243.7,1243.6,5.0]
[1610035076437,6.60959,1243.7,1243.6,9.00959]
[1610035077938,2.6,1243.7,1243.6,9.00959]
[1610035078138,5.754,1245.1,1243.6,5.0]
[1610035078537,4.00959,1243.8,1243.6,5.0]
[1610035078737,6.12869,1243.8,1243.6,5.0]
[1610035083341,6.12869,1243.8,1242.5,62.6909]
[1610035084542,2.1191,1243.8,1243.1,4.00959]
[1610035084743,65.0918,1244.7,1243.1,4.00959]
[1610035086545,4.00959,1243.2,1243.1,4.00959]
[1610035086745,6.37129,1243.2,1243.1,4.00959]
[1610035087748,6.37129,1243.2,1242.4,5.0]
[1610035088446,4.00959,1242.8,1242.6,4.00959]
[1610035088647,4.00959,1242.8,1242.4,5.0]
[1610035088847,6.83169,1242.8,1242.4,5.0]
[1610035090047,6.83169,1242.8,1241.9,5.0]
[1610035090450,4.00959,1242.0,1241.9,9.00959]
[1610035090850,6.02959,1242.0,1241.9,9.00959]
[1610035092053,6.02959,1242.0,1241.9,5.0]
[1610035092654,6.02959,1242.0,1239.2,3.475]
[1610035092854,6.02959,1242.0,1240.4,47.5545]
[1610035093053,6.02959,1242.0,1238.1,5.956]
[1610035093453,6.02959,1242.0,1238.6,47.8634]
[1610035093654,6.02959,1242.0,1238.6,49.8251]
[1610035094053,6.02959,1242.0,1238.6,1.9617]
[1610035094254,36.02959,1242.0,1238.6,51.112]
[1610035094454,4.00959,1240.9,1240.7,4.00959]
[1610035094654,2.02,1242.0,1240.7,4.00959]
[1610035094856,1.9335,1240.9,1240.7,4.00959]
[1610035099964,32.02,1242.0,1240.7,4.00959]
[1610035100566,4.00959,1241.1,1241.0,4.00959]
[1610035100765,6.20189,1241.1,1241.0,14.00959]
[1610035100965,2.1923,1241.1,1241.0,14.00959]
[1610035101967,32.1923,1241.1,1241.0,10.0]
[1610035102569,36.20189,1241.1,1241.0,10.0]
[1610035103068,36.20189,1241.1,1240.5,4.00959]
[1610035103768,6.20189,1241.1,1240.5,4.00959]
[1610035104568,4.00959,1240.6,1240.5,4.00959]
[1610035104768,2.1923,1241.1,1240.5,4.00959]
[1610035105668,2.02,1242.0,1240.5,4.00959]
[1610035106068,30.0,1242.3,1240.5,4.00959]
[1610035106268,30.0,1243.1,1240.5,4.00959]
[1610035106468,30.0,1242.8,1240.5,4.00959]
[1610035106668,30.0,1242.8,1241.5,4.00959]
[1610035106970,30.0,1242.8,1240.1,50.8292]
[1610035107170,32.109,1242.8,1240.1,50.8292]
[1610035108573,32.109,1242.8,1242.1,4.00959]
[1610035108772,32.109,1242.8,1241.0,10.0]
[1610035110173,2.109,1242.8,1241.0,10.0]
[1610035110375,32.109,1242.8,1241.0,10.0]
[1610035110575,4.00959,1241.9,1241.7,4.00959]
[1610035110775,32.109,1242.8,1241.7,4.00959]
[1610035111275,2.109,1242.8,1241.7,4.00959]
[1610035111475,32.109,1242.8,1241.7,4.00959]
[1610035112074,39.7261,1242.8,1241.0,10.0]
[1610035112674,4.00959,1241.5,1241.4,4.00959]
[1610035112875,6.03709,1241.5,1241.4,4.00959]
[1610035114078,2.0275,1241.5,1241.4,4.00959]
[1610035116879,4.00959,1241.8,1241.4,4.00959]
[1610035116880,4.00959,1241.8,1241.5,7.9725]
[1610035117579,39.7261,1242.8,1241.5,7.9725]
[1610035118679,4.00959,1241.6,1241.5,7.9725]
[1610035118980,6.95689,1241.6,1241.5,7.9725]
[1610035119280,1.95689,1241.6,1241.5,7.9725]
[1610035120581,1.95689,1241.6,1241.5,11.98209]
[1610035123989,9.7261,1242.8,1241.5,11.98209]
[1610035124189,2.109,1242.8,1241.5,11.98209]
[1610035124390,6.153,1243.1,1241.5,11.98209]
[1610035124591,30.0,1244.1,1242.8,4.00959]
[1610035124791,35.7292,1244.1,1242.8,4.00959]
[1610035124991,35.7292,1244.1,1241.8,47.6806]
[1610035125394,5.7292,1244.1,1241.8,47.6806]
[1610035125593,30.0,1244.0,1241.8,47.6806]
[1610035126593,4.00959,1242.8,1242.5,4.00959]
[1610035126792,6.73809,1242.8,1242.5,4.00959]
[1610035127392,6.73809,1242.8,1241.8,47.6806]
[1610035127793,36.73809,1242.8,1241.8,47.6806]
[1610035128692,32.7285,1242.8,1242.0,4.00959]
[1610035129095,2.7285,1242.8,1242.0,4.00959]
[1610035129293,2.7285,1242.8,1241.8,47.6806]
[1610035129695,30.0,1242.7,1241.8,47.6806]
[1610035130498,2.7285,1242.8,1241.8,47.6806]
[1610035130697,4.00959,1241.9,1241.8,51.69019]
[1610035130898,6.53089,1241.9,1241.8,4.00959]
[1610035131097,6.53089,1241.9,1241.6,7.9725]
[1610035131301,2.5213,1241.9,1241.6,7.9725]
[1610035131898,2.7285,1242.8,1242.0,5.4512]
[1610035132498,30.0,1243.1,1242.0,5.4512]
[1610035132698,30.0,1243.9,1242.2,4.00959]
[1610035134599,4.00959,1242.3,1242.2,4.00959]
[1610035134799,6.57119,1242.3,1242.0,5.4512]
[1610035136598,4.00959,1242.1,1242.0,5.4512]
[1610035140802,2.5616,1242.3,1242.1,1.44161]
[1610035141201,83.5305,1242.6,1242.1,1.44161]
[1610035141601,30.0,1242.6,1242.1,1.44161]
[1610035141803,52.0793,1242.4,1242.1,1.44161]
[1610035142002,30.0,1242.3,1242.1,1.44161]
[1610035142202,32.915,1242.3,1242.1,1.44161]
[1610035142604,4.00959,1242.2,1242.1,1.44161]
[1610035142805,34.00959,1242.2,1240.4,55.4355]
[1610035143103,34.00959,1242.2,1092.8,0.40416971]
[1610035143303,67.0145,1242.1,1237.5,61.5729]
[1610035143503,30.0,1242.0,1237.5,61.5729]
[1610035143703,32.5838,1242.0,1237.5,65.0479]
[1610035143904,5.8875,1241.9,1237.5,65.0479]
[1610035144104,30.0,1241.8,1237.5,65.0479]
[1610035144604,30.0,1241.8,1240.2,4.00959]
[1610035145406,35.8875,1241.9,1240.2,4.00959]
[1610035146405,5.8875,1241.9,1240.2,4.00959]
[1610035146606,4.00959,1241.1,1240.9,4.00959]
[1610035146806,6.79009,1241.1,1240.9,4.00959]
[1610035147406,2.7805,1241.1,1240.9,4.00959]
[1610035149007,2.5838,1242.0,1240.9,13.03369]
[1610035149207,3.0739,1241.4,1240.9,13.03369]
[1610035150009,35.7626,1243.5,1242.0,4.3423]
[1610035150609,35.7626,1243.5,1242.4,4.00959]
[1610035151010,5.7626,1243.5,1242.4,4.00959]
[1610035151312,30.0,1243.4,1242.4,4.00959]
[1610035151511,32.5324,1243.4,1242.4,4.00959]
[1610035152311,32.5324,1243.4,1242.0,4.3423]
[1610035152611,4.00959,1242.5,1242.3,4.00959]
[1610035152813,6.15839,1242.5,1242.3,4.00959]
[1610035153411,6.15839,1242.5,1242.0,4.3423]
[1610035154715,4.00959,1242.1,1242.0,4.3423]
[1610035155116,6.46769,1242.1,1242.0,4.3423]
[1610035155917,36.46769,1242.1,1242.0,4.3423]
[1610035157019,6.46769,1242.1,1242.0,4.3423]
[1610035159520,2.12539,1242.1,1241.8,4.00959]
[1610035160022,2.1488,1242.5,1241.8,4.00959]
[1610035160423,30.0,1243.3,1241.8,4.00959]
[1610035160721,4.00959,1242.2,1241.8,4.00959]
[1610035161423,6.41209,1242.2,1241.8,4.00959]
[1610035162724,6.41209,1242.2,1242.1,4.00959]
[1610035165324,2.4025,1242.2,1242.1,4.00959]
[1610035166525,30.0,1243.3,1242.1,4.00959]
[1610035166729,30.0,1243.3,1241.2,59.6359]
[1610035166730,4.00959,1242.6,1242.3,4.00959]
[1610035167126,6.04839,1242.6,1242.3,4.00959]
[1610035168729,6.04839,1242.6,1242.1,4.00959]
[1610035170727,6.04839,1242.6,1242.3,4.00959]
[1610035172629,2.0388,1242.6,1242.3,4.00959]
[1610035172829,4.00959,1242.9,1242.5,4.00959]
[1610035174829,4.00959,1243.1,1242.8,4.00959]
[1610035175230,0.80459,1243.5,1242.8,4.00959]
[1610035175531,30.0,1243.9,1242.8,4.00959]
[1610035175932,30.0,1243.8,1242.8,4.00959]
[1610035176132,33.0307,1243.8,1242.8,4.00959]
[1610035176737,4.00959,1243.4,1243.3,4.00959]
[1610035176932,34.00959,1243.4,1243.3,4.00959]
[1610035177134,36.31519,1243.4,1243.3,4.00959]
[1610035177833,36.31519,1243.4,1241.9,58.6933]
[1610035178435,6.31519,1243.4,1241.9,58.6933]
[1610035178735,2.3056,1243.4,1243.3,4.00959]
[1610035180141,32.3056,1243.4,1243.3,4.00959]
[1610035181139,2.3056,1243.4,1243.3,4.00959]
[1610035181339,2.3056,1243.4,1242.6,50.8828]
[1610035182040,30.0,1243.7,1242.6,50.8828]
[1610035182241,3.0307,1243.8,1242.6,50.8828]
[1610035182440,30.0,1244.8,1242.6,50.8828]
[1610035182640,30.0,1244.8,1242.2,2.0926]
[1610035182840,4.00959,1243.8,1243.6,4.00959]
[1610035183040,6.75519,1243.8,1243.6,4.00959]
[1610035183240,2.7456,1243.8,1243.6,4.00959]
[1610035188146,30.0,1244.0,1243.6,4.00959]
[1610035188851,30.0,1244.0,1243.9,4.00959]
[1610035189852,4.00959,1244.2,1243.9,4.00959]
[1610035190851,4.00959,1244.0,1243.9,4.00959]
[1610035191151,7.17129,1244.0,1243.9,4.00959]